[Event "MCCT Chessable Masters 2022"]
[Site "Online"]
[Date "2022.05.16"]
[Round "2.3"]
[White "Mishra, Abhimanyu"]
[Black "Ding, Liren"]
[Result "0-1"]
[ECO "B12"]
[WhiteElo "2535"]
[BlackElo "2806"]
[Annotator "TA"]
[PlyCount "92"]
[EventDate "2022.05.19"]
[EventType "tourn"]
[EventCountry "NET"]
[SourceTitle "playchess.com"]
[Source "ChessBase"]
[SourceQuality "1"]
[TimeControl "900+10"]

{[%evp 10,92,14,20,45,62,77,72,83,54,77,81,66,75,85,54,48,48,99,103,106,64,95,15,112,111,112,112,112,112,123,120,208,188,138,70,79,73,75,74,93,19,130,137,223,135,253,243,252,250,265,127,124,130,100,103,170,97,104,119,159,159,177,-8,-8,-8,-8,-8,0,-8,0,-8,0,0,0,0,0,-130,-162,-29990,-29991,-29991,-29992,-29992,-29993]} 1. e4 {[%emt 0:00:00]} c6 {[%emt 0:00:00]} 2. d4 {[%emt 0:00:03]} d5 {[%emt 0:00:03]} 3. e5 {[%emt 0:00:01]} Bf5 {[%emt 0:00:02]} 4. Nd2 {[%emt 0:00:03]} e6 {[%emt 0:00:02]} 5. Nb3 {[%emt 0:00:03]} Nd7 {[%emt 0:00:44]} 6. Nf3 {[%emt 0:00:04]} f6 {[%emt 0:00:03] B12: Caro-Kann: Advance Variation.} 7. Bd3 $1 {[%emt 0:00:32]} Bg4 {[%emt 0:00:55]} 8. h3 {[%emt 0:01:33]} Bh5 {[%emt 0:00:03] White is better.} 9. g4 {[%emt 0:01:03]} Bf7 {[%emt 0:00:53] [#]} 10. Bf4 $146 {[%emt 0:00:48]} ({Predecessor:} 10. Qe2 Qb6 11. c4 Bb4+ 12. Kf1 dxc4 13. Bxc4 O-O-O 14. Be3 Qc7 15. Rc1 Nb6 16. Bf4 {0-1 (29) Wisnet,D (2344)-Mueller,A (2235) Bayern 2014}) 10... a5 {[%emt 0:00:33]} 11. a4 {[%emt 0:01:03]} Ne7 {[%emt 0:01:23]} 12. Qe2 {[%emt 0:01:57]} Ng6 {[%emt 0:04:01]} 13. Bg3 {[%emt 0:00:48]} Bb4+ {[%emt 0:00:45]} (13... fxe5 $14 14. Bxg6 Bxg6) 14. c3 $16 {[%emt 0:00:18]} Be7 {[%emt 0:00:01]} 15. h4 {[%emt 0:01:27]} Qb6 {[%emt 0:00:46]} 16. Nbd2 {[%emt 0:02:02]} (16. exf6 $16 gxf6 17. h5) 16... h5 {[%emt 0:00:32]} ({Resist} 16... Qxb2 17. Rb1 Qxc3 18. exf6 gxf6 19. O-O $18) (16... fxe5 $1 $11 {remains equal.} 17. h5 Nf4 18. Bxf4 exf4) 17. exf6 {[%emt 0:01:55]} gxf6 {[%emt 0:00:04]} 18. g5 {[%emt 0:00:15]} O-O-O {[%emt 0:00:23]} 19. O-O-O {[%emt 0:00:21]} Rde8 {[%emt 0:00:34]} 20. Rde1 {[%emt 0:00:53]} e5 {[%emt 0:01:34]} (20... f5 $16) 21. dxe5 $18 {[%emt 0:01:08]} fxe5 {[%emt 0:00:41]} 22. Nxe5 {[%emt 0:00:26]} ({Better is} 22. Bf5 $16 {[%cal Rf3e5]} e4 23. Nd4) 22... Ngxe5 $14 {[%emt 0:00:50]} 23. Bxe5 {[%emt 0:00:03]} Bxg5 {[%emt 0:02:27]} 24. hxg5 {[%emt 0:00:26]} Nxe5 {[%emt 0:00:10] [#]} 25. Bf5+ {[%emt 0:00:23]} (25. f4 $1 $16 {[%cal Rf4e5]} Ng4 26. Qf3) 25... Kd8 {[%emt 0:00:01]} (25... Kb8 $11 {keeps the balance.}) 26. f4 $16 {[%emt 0:00:58]} Ng6 {[%emt 0:01:06]} (26... Ng4 $16 27. Qf1 Rxe1+ 28. Qxe1 Re8) 27. Qf3 {[%emt 0:00:06]} Rhf8 {[%emt 0:00:17]} (27... Qc7 $16) 28. Bc2 $18 {[%emt 0:00:40]} Rxe1+ {[%emt 0:00:38]} 29. Rxe1 {[%emt 0:00:03]} Re8 {[%emt 0:00:00]} 30. Rxe8+ {[%emt 0:00:28]} (30. Rf1 $18) 30... Bxe8 $16 {[%emt 0:00:00]} 31. Bxg6 {[%emt 0:00:18]} Bxg6 $18 {[%emt 0:00:07][%mdl 4096] Endgame KQB-KQN} 32. f5 {[%emt 0:00:03]} Be8 {[%emt 0:00:15] [#]} (32... Qg1+ $16 33. Kc2 Be8) 33. Qf4 {[%emt 0:00:09]} (33. Qg2 $1 $18 {Threatens to win with g6.} Qe3 34. g6) 33... Qg1+ $16 {[%emt 0:00:16]} 34. Kc2 {[%emt 0:00:02]} Qg4 {[%emt 0:00:00]} 35. Qxg4 {[%emt 0:00:13]} hxg4 {[%emt 0:00:01] KB-KN} 36. Nf1 $2 {[%emt 0:00:09]} (36. Kd3 $18) 36... Ke7 $11 {[%emt 0:00:04] White should prevent ...Kd6.} 37. Kd3 {[%emt 0:00:18]} Kd6 $1 {[%emt 0:00:15] Black wants to play ...Ke5.} 38. Ne3 {[%emt 0:00:11]} Ke5 {[%emt 0:00:13] aiming for ...g3.} 39. g6 {[%emt 0:00:10]} g3 {[%emt 0:00:12] Strongly threatening ...c5.} 40. Ke2 {[%emt 0:00:10] And now Kf3 would win.} Kf4 {[%emt 0:00:06]} 41. b3 {[%emt 0:00:13]} b6 {[%emt 0:00:12]} 42. b4 {[%emt 0:00:10]} d4 {[%emt 0:00:15]} 43. g7 {[%emt 0:00:09]} (43. bxa5 $11 dxe3 44. axb6) 43... Bf7 $17 {[%emt 0:00:02]} 44. bxa5 $2 {[%emt 0:00:13]} ({Don't go for} 44. cxd4 $2 axb4 45. d5 cxd5 $19) (44. Ng2+ $19 Kxf5 45. bxa5 d3+ 46. Kxd3 bxa5 47. Ke3) 44... dxe3 {[%emt 0:00:09] Black mates.} 45. axb6 {[%emt 0:00:03]} g2 {[%emt 0:00:06]} 46. b7 {[%emt 0:00:14]} Bc4+ {[%emt 0:00:01] What a bad dream for White.  Weighted Error Value: White=0.39/Black=0.25 (precise)} 0-1

[Event "MCCT Chessable Masters 2022"]
[Site "Online"]
[Date "2022.05.16"]
[Round "2.4"]
[White "Shankland, Sam"]
[Black "Anton Guijarro, David"]
[Result "0-1"]
[ECO "A88"]
[WhiteElo "2718"]
[BlackElo "2691"]
[Annotator "TA"]
[PlyCount "92"]
[EventDate "2022.05.19"]
[EventType "tourn"]
[EventCountry "NET"]
[SourceTitle "playchess.com"]
[Source "ChessBase"]
[SourceQuality "1"]
[TimeControl "900+10"]

{[%evp 17,92,20,42,40,38,-8,-4,-2,41,50,62,47,53,32,74,79,84,85,116,0,-7,0,0,-9,-9,0,-14,-10,-14,-69,-59,-59,-57,-64,-60,-79,-82,-79,-75,-78,-73,-186,-191,-222,-206,-239,-235,-272,-274,-255,-270,-239,-236,-246,-235,-233,-209,-290,-226,-248,-248,-254,-248,-270,-265,-373,-374,-590,-582,-725,-645,-29968,-6348,-29997,-1362,-1064,-970]} 1. c4 {[%emt 0:00:00]} f5 {[%emt 0:00:00]} 2. g3 {[%emt 0:00:11]} g6 {[%emt 0:00:15]} 3. Nf3 {[%emt 0:00:10]} Bg7 {[%emt 0:00:07]} 4. d4 {[%emt 0:00:01]} Nf6 {[%emt 0:00:01]} 5. Bg2 {[%emt 0:00:01]} O-O {[%emt 0:00:02]} 6. O-O {[%emt 0:00:03]} d6 {[%emt 0:00:02]} 7. Nc3 {[%emt 0:00:03]} c6 {[%emt 0:00:03]} 8. b3 {[%emt 0:00:24]} Na6 {[%emt 0:00:18] 8...Qa5 injects fresh life into this line.} 9. Bb2 {[%emt 0:00:58]} Nc7 {[%emt 0:00:22]} 10. Qd3 {[%emt 0:00:40] A88: Dutch Defence: Leningrad System: 5 Nf3 0-0 6 0-0 d6 7 Nc3 c6.} Rb8 {[%emt 0:01:23]} 11. e4 {[%emt 0:00:59]} (11. e3 $14) 11... fxe4 $1 $11 {[%emt 0:00:09]} 12. Nxe4 {[%emt 0:00:03] The position is equal.} Nxe4 {[%emt 0:00:43]} 13. Qxe4 {[%emt 0:00:02]} Bf5 {[%emt 0:00:02]} 14. Qe2 {[%emt 0:00:38] [#]} b5 $146 {[%emt 0:01:27]} ({Predecessor:} 14... Qd7 15. Rfe1 Rbe8 16. Qf1 Bg4 17. Nd2 g5 18. h3 Bh5 19. Ne4 h6 20. g4 Bg6 {½-½ (50) Gouanelle,F (2158)-Rene,B (2299) Paris 2010}) 15. Rfe1 {[%emt 0:00:47]} bxc4 {[%emt 0:01:26]} 16. Qxc4+ {[%emt 0:00:38]} Nd5 {[%emt 0:00:08]} 17. Ng5 {[%emt 0:00:55]} ({Don't play} 17. Qxc6 Nb4 18. Qc4+ d5 $11) 17... Qe8 {[%emt 0:03:59]} 18. Ne6 {[%emt 0:03:37]} (18. Bxd5+ $16 cxd5 19. Qxd5+ Kh8 20. Rac1) 18... Bxe6 {[%emt 0:00:38]} 19. Rxe6 {[%emt 0:00:02]} Rxf2 {[%emt 0:00:46]} 20. Kxf2 {[%emt 0:02:08]} Qf7+ {[%emt 0:00:04]} 21. Kg1 {[%emt 0:00:00]} Qxe6 {[%emt 0:00:01]} 22. Qxc6 {[%emt 0:00:06]} Nb4 {[%emt 0:01:44]} 23. Qe4 {[%emt 0:00:14]} (23. Qc3 $11) 23... Qxe4 $15 {[%emt 0:00:20]} 24. Bxe4 {[%emt 0:00:00]} d5 {[%emt 0:00:11]} 25. Bg2 {[%emt 0:00:36]} e6 {[%emt 0:00:09] Black is more active.} 26. Bh3 {[%emt 0:00:21]} Kf7 {[%emt 0:00:20] Black keeps a firm grip on the game.} 27. Rc1 {[%emt 0:02:18] [#]} Rb7 {[%emt 0:00:49] Inhibits Rc7+.} 28. Kg2 {[%emt 0:00:52]} a5 {[%emt 0:00:48]} 29. Bc3 {[%emt 0:02:19]} (29. Rf1+ $17 {might work better.} Ke7 30. Rc1) 29... Nxa2 $19 {[%emt 0:01:06]} 30. Rf1+ {[%emt 0:00:01]} Ke7 {[%emt 0:00:02]} 31. Bxa5 {[%emt 0:00:41]} Bxd4 {[%emt 0:00:28]} 32. Rf3 {[%emt 0:00:15]} e5 {[%emt 0:00:19]} 33. Bd2 {[%emt 0:00:01]} e4 {[%emt 0:01:12]} 34. Bg5+ {[%emt 0:00:01]} Kd6 {[%emt 0:00:02]} 35. Rf8 {[%emt 0:00:03]} Rxb3 {[%emt 0:00:24] [#] Hoping for ...Rb2+.} 36. Rd8+ {[%emt 0:00:01]} Kc6 {[%emt 0:00:05]} 37. Bd7+ {[%emt 0:00:18]} Kc5 {[%emt 0:00:35] Threatens to win with ...Rb2+.} 38. Rc8+ {[%emt 0:00:26]} Kd6 {[%emt 0:00:07]} 39. Ba4 {[%emt 0:00:04]} Rb6 {[%emt 0:00:39]} 40. Bf4+ {[%emt 0:00:30]} Ke6 {[%emt 0:00:13]} 41. Re8+ {[%emt 0:00:16]} (41. Rc6+ {was the only defense.} Rxc6 42. Bxc6) 41... Kf7 {[%emt 0:00:04]} 42. Ra8 {[%emt 0:00:08]} (42. Rc8 {keeps fighting.} Nc3 43. Rc7+ Kf6 44. Rc6+ Rxc6 45. Bxc6) 42... Nc3 {[%emt 0:00:03]} 43. Bd7 {[%emt 0:00:11]} Ke7 {[%emt 0:00:07]} 44. Bh3 {[%emt 0:00:12]} Rb2+ {[%emt 0:00:04]} 45. Kf1 {[%emt 0:00:01]} e3 {[%emt 0:00:05]} (45... Rb1+ $142 46. Bc1 Rxc1+ 47. Kg2 Rg1#) 46. Bg5+ {[%emt 0:00:28]} Kf7 {[%emt 0:00:13] Weighted Error Value: White=0.85/Black=0.24 (precise)} 0-1

[Event "MCCT Chessable Masters 2022"]
[Site "Online"]
[Date "2022.05.16"]
[Round "2.6"]
[White "Wei, Yi"]
[Black "Harikrishna, Pentala"]
[Result "1-0"]
[ECO "D38"]
[WhiteElo "2727"]
[BlackElo "2705"]
[Annotator "TA"]
[PlyCount "75"]
[EventDate "2022.05.19"]
[EventType "tourn"]
[EventCountry "NET"]
[SourceTitle "playchess.com"]
[Source "ChessBase"]
[SourceQuality "1"]
[TimeControl "900+10"]

{[%evp 11,75,20,18,26,32,32,40,17,10,17,23,18,18,19,17,23,17,16,26,24,57,57,56,34,41,22,44,19,25,0,34,33,43,34,43,45,52,36,99,60,95,110,90,66,167,167,367,344,346,368,350,331,350,355,354,347,711,705,699,688,658,675,794,721,743,690]} 1. d4 {[%emt 0:00:00]} Nf6 {[%emt 0:00:00]} 2. c4 {[%emt 0:00:02]} e6 {[%emt 0:00:02]} 3. Nf3 {[%emt 0:00:02]} d5 {[%emt 0:00:03]} 4. Nc3 {[%emt 0:00:01]} Bb4 {[%emt 0:00:04]} 5. Qa4+ {[%emt 0:00:05]} Nc6 {[%emt 0:00:02]} 6. e3 {[%emt 0:00:01]} O-O {[%emt 0:00:06]} 7. Qc2 {[%emt 0:00:01] D38: Queen's Gambit Declined: Ragozin Defence (4 Nf3 Bb4).} Na5 {[%emt 0:00:19]} 8. c5 {[%emt 0:00:15]} b6 {[%emt 0:00:05]} 9. Bd2 {[%emt 0:01:16] White is slightly better.} bxc5 {[%emt 0:01:03]} 10. a3 {[%emt 0:01:30]} Bxc3 {[%emt 0:00:18]} 11. Bxc3 {[%emt 0:00:16]} Nc6 {[%emt 0:00:06]} 12. dxc5 {[%emt 0:00:31]} Ne4 {[%emt 0:01:47] [#]} 13. b4 $146 {[%emt 0:00:13]} ({Predecessor:} 13. Be2 Nxc3 14. Qxc3 a5 15. O-O Ba6 16. Bxa6 Rxa6 17. b4 Qb8 18. Qd3 Ra7 19. b5 {1-0 (61) Santos Ruiz,M (2560)-Bluebaum,M (2643) chess24.com INT 2019}) 13... Nxc3 {[%emt 0:01:28]} 14. Qxc3 {[%emt 0:00:04]} a6 {[%emt 0:00:06]} 15. Be2 {[%emt 0:02:18]} (15. Bd3 {is interesting.} e5 16. Nxe5 Qf6 17. f4) 15... Qf6 {[%emt 0:01:14]} 16. Qxf6 {[%emt 0:03:02]} gxf6 {[%emt 0:00:03]} 17. Kd2 {[%emt 0:00:01]} Bd7 {[%emt 0:00:09]} 18. Kc3 {[%emt 0:00:16]} Rfb8 {[%emt 0:00:26]} 19. Rhb1 {[%emt 0:00:11]} e5 {[%emt 0:00:36]} 20. a4 {[%emt 0:03:41]} Ne7 {[%emt 0:00:27]} 21. Kd2 {[%emt 0:00:05]} (21. Ne1 {is more complex.} Bf5 22. Bd3 Bg6 23. Nc2) 21... Kf8 {[%emt 0:01:06]} 22. Ne1 {[%emt 0:00:11][%cal Bf3e1,Be1c2,Bc2d4][%mdl 32]} Ra7 {[%emt 0:00:18]} 23. Nc2 {[%emt 0:00:07]} c6 {[%emt 0:00:30] Against b5} 24. g4 {[%emt 0:01:04]} h6 {[%emt 0:00:23] [#]} (24... Ng6 $14) 25. f4 $1 $16 {[%emt 0:00:10]} f5 {[%emt 0:01:12]} 26. fxe5 {[%emt 0:00:26]} fxg4 {[%emt 0:00:04]} 27. Nd4 {[%emt 0:00:10]} h5 {[%emt 0:00:38]} ({Black should play} 27... Nf5 $1 $14) 28. Bd3 $18 {[%emt 0:00:32]} Kg7 $2 {[%emt 0:00:22] [#]} (28... Be8 {is a better defense.} 29. Rb2 Ng6) 29. b5 $1 {[%emt 0:00:20]} axb5 {[%emt 0:01:56]} 30. axb5 {[%emt 0:00:02]} Rxa1 {[%emt 0:00:01]} 31. Rxa1 {[%emt 0:00:01] aiming for Ra7.} cxb5 {[%emt 0:00:03]} 32. Ra7 {[%emt 0:00:01] Prevents Rb7.} Rd8 {[%emt 0:00:02]} 33. e6 {[%emt 0:00:01]} ({Worse is} 33. Nxb5 Nc6 34. Ra6 Nxe5 $17) ({Weaker is} 33. Bxb5 Bxb5 34. Rxe7 (34. Nxb5 Nc6 $16) 34... Rd7 $16) 33... fxe6 {[%emt 0:00:35]} (33... Bxe6 34. Rxe7 Kf6) 34. c6 {[%emt 0:00:40][%cal Bc5c6,Bc6c7][%mdl 32] White is clearly winning.} Bc8 {[%emt 0:01:17]} 35. Rxe7+ {[%emt 0:00:04]} Kf6 {[%emt 0:00:01]} 36. Rh7 {[%emt 0:00:12]} e5 {[%emt 0:00:02]} 37. Nxb5 {[%emt 0:00:56]} Kg5 {[%emt 0:00:25]} 38. c7 {[%emt 0:00:10] Weighted Error Value: White=0.05 (flawless) /Black=0.22 (precise)} 1-0

[Event "MCCT Chessable Masters 2022"]
[Site "Online"]
[Date "2022.05.16"]
[Round "2.7"]
[White "Giri, Anish"]
[Black "Praggnanandhaa R"]
[Result "1-0"]
[ECO "A21"]
[WhiteElo "2761"]
[BlackElo "2642"]
[Annotator "TA"]
[PlyCount "63"]
[EventDate "2022.05.19"]
[EventType "tourn"]
[EventCountry "NET"]
[SourceTitle "playchess.com"]
[Source "ChessBase"]
[SourceQuality "1"]
[TimeControl "900+10"]

{[%evp 9,63,7,8,-8,-7,0,0,0,2,-32,0,-41,-29,-21,0,0,-4,-4,-6,-35,0,0,0,-33,29,34,27,24,33,22,20,30,16,0,36,0,102,7,17,0,211,120,118,104,191,112,126,80,121,123,122,141,230,226,540,525]} 1. c4 {[%emt 0:00:00]} e5 {[%emt 0:00:00]} 2. Nc3 {[%emt 0:00:02]} Bb4 {[%emt 0:00:10]} 3. Qc2 {[%emt 0:00:02]} Nf6 {[%emt 0:00:08]} 4. Nf3 {[%emt 0:00:02]} Bxc3 {[%emt 0:00:02]} 5. Qxc3 {[%emt 0:00:01]} d6 {[%emt 0:00:01]} 6. b4 {[%emt 0:00:33] [#] A21: English Opening: 1...e5 2 Nc3.} e4 $146 {[%emt 0:00:44]} ({Predecessor:} 6... O-O 7. d3 Re8 8. e4 c6 9. Be2 d5 10. Nd2 a5 11. a3 axb4 12. axb4 Rxa1 13. Qxa1 {1-0 (37) Yakubboev,N (2604)-Stoyanov,T (2396) Chess.com INT 2021}) 7. Ng5 {[%emt 0:00:06]} h6 {[%emt 0:00:03]} 8. Nh3 {[%emt 0:00:02] The position is equal.} Bxh3 {[%emt 0:00:11]} 9. gxh3 {[%emt 0:00:35]} Nbd7 {[%emt 0:01:45]} 10. Bb2 {[%emt 0:00:36]} Qe7 {[%emt 0:00:05]} 11. Rg1 {[%emt 0:00:28]} Rg8 {[%emt 0:01:20]} 12. O-O-O {[%emt 0:00:47]} O-O-O {[%emt 0:00:03]} 13. Kb1 {[%emt 0:00:51]} Kb8 {[%emt 0:00:18]} 14. Ka1 {[%emt 0:00:26]} c5 {[%emt 0:03:45]} 15. bxc5 {[%emt 0:00:41]} Nxc5 {[%emt 0:01:03]} 16. Qa3 {[%emt 0:00:40] Prevents Na4.} Nfd7 {[%emt 0:00:46]} (16... Rc8 $15) 17. d4 $11 {[%emt 0:01:13]} exd3 {[%emt 0:00:03]} 18. exd3 {[%emt 0:00:00][%cal Be2d3,Bd3d4][%mdl 32]} Nb6 {[%emt 0:00:10]} 19. d4 {[%emt 0:02:31]} (19. Bxg7 $2 f6 20. d4 Ne6 21. Bxf6 Qxf6 22. Rxg8 Rxg8 23. Qxd6+ Kc8 $19) 19... Nca4 {[%emt 0:00:46]} 20. Bc1 $1 {[%emt 0:00:06][%cal Oc4c5]} Qf6 {[%emt 0:00:46]} 21. Be3 {[%emt 0:00:10]} Rc8 {[%emt 0:00:18]} 22. Kb1 {[%emt 0:01:29]} Rc6 {[%emt 0:02:19]} (22... Nd5 $1 $11 {keeps the balance.} 23. Bd2 (23. cxd5 $2 Nc3+ 24. Ka1 Nxd1 $19) 23... Ndb6) 23. Bd3 {[%emt 0:02:22]} (23. Rc1 $1 $16) 23... Rgc8 $1 {[%emt 0:00:57]} 24. Rc1 {[%emt 0:00:08] Threatens to win with c5.} g6 $2 {[%emt 0:00:30]} (24... Nxc4 $11 25. Qxa4 Nxe3 26. fxe3 (26. Rxc6 Rxc6 27. Rc1 Rxc1+ 28. Kxc1 Nd5 $17) 26... Qf2) 25. Rc2 {[%emt 0:01:54]} (25. c5 $1 $18) 25... Nxc4 $16 {[%emt 0:02:06]} 26. Qxa4 {[%emt 0:00:06][%cal Rc2c4]} Ra6 {[%emt 0:00:06] [#]} (26... Nxe3 $16 {was called for.} 27. fxe3 Rxc2 28. Bxc2 Qf2) 27. Qxc4 {[%emt 0:00:30]} (27. Rxc4 $6 Rxa4 28. Rxa4 Qf3 $14) ({White should try} 27. Qxa6 $1 $18 {[%mdl 512]} bxa6 28. Rxc4) 27... Rxc4 {[%emt 0:00:05]} 28. Rxc4 $40 {[%emt 0:00:06][%mdl 128] White wants a kill. Really sharp!} (28. Bxc4 $142 Rc6 29. Rgc1 (29. Bxh6 g5 $11)) 28... d5 {[%emt 0:00:53]} 29. Rc5 {[%emt 0:00:48]} Rb6+ {[%emt 0:00:20]} 30. Ka1 {[%emt 0:00:01]} Qd6 {[%emt 0:00:01] [#]} (30... Rd6 $16 31. Be2 a6) 31. Rg4 $1 $18 {[%emt 0:00:24] Bf4 is the strong threat.} ({Don't play} 31. Bxh6 a6 32. Rg3 Rc6) 31... g5 {[%emt 0:00:30] [#] Against Bf4} (31... Qd7 32. Bf4+ (32. Bxh6 a6 $16) 32... Ka8) 32. Bf4 $1 {[%emt 0:00:12][%mdl 512] Weighted Error Value: White=0.21 (precise) /Black=0.41} 1-0

[Event "MCCT Chessable Masters 2022"]
[Site "Online"]
[Date "2022.05.16"]
[Round "2.8"]
[White "Tari, Aryan"]
[Black "Grandelius, Nils"]
[Result "1/2-1/2"]
[ECO "B52"]
[WhiteElo "2654"]
[BlackElo "2635"]
[Annotator "TA"]
[PlyCount "113"]
[EventDate "2022.05.19"]
[EventType "tourn"]
[EventCountry "NET"]
[SourceTitle "playchess.com"]
[Source "ChessBase"]
[SourceQuality "1"]
[TimeControl "900+10"]

{[%evp 17,113,19,32,12,0,0,2,0,14,24,19,6,4,12,8,9,38,31,61,62,59,59,107,48,41,48,38,41,43,35,37,28,34,31,63,20,21,16,19,17,58,58,68,61,68,61,61,39,61,61,64,22,22,22,25,29,64,16,203,8,12,0,0,0,482,0,0,6,224,0,0,0,0,0,0,0,0,0,0,0,0,0,0,0,0,0,0,0,0,0,0,0,0,0,0,0,0,0]} 1. e4 {[%emt 0:00:00]} c5 {[%emt 0:00:00]} 2. Nf3 {[%emt 0:00:02]} d6 {[%emt 0:00:04]} 3. Bb5+ {[%emt 0:00:02]} Bd7 {[%emt 0:00:05]} 4. Bxd7+ {[%emt 0:00:01]} Nxd7 {[%emt 0:00:05]} 5. O-O {[%emt 0:00:03]} Ngf6 {[%emt 0:00:04]} 6. Qe2 {[%emt 0:00:00]} e6 {[%emt 0:00:09]} 7. b3 {[%emt 0:00:01]} Be7 {[%emt 0:00:37]} 8. Bb2 {[%emt 0:00:02]} O-O {[%emt 0:00:01]} 9. c4 {[%emt 0:00:08]} a6 {[%emt 0:01:16]} 10. Nc3 {[%emt 0:00:56] B52: Sicilian: Moscow Variation with 3...Bd7.} Ne5 {[%emt 0:00:21]} 11. Nxe5 {[%emt 0:00:04]} dxe5 {[%emt 0:00:00]} 12. f4 {[%emt 0:00:00] [#]} exf4 $146 {[%emt 0:01:06]} ({Predecessor:} 12... Nd7 13. f5 Bf6 14. Nd1 Nb8 15. fxe6 fxe6 16. Ne3 Nc6 17. Ng4 Nd4 18. Qd3 Qe7 {0-1 (36) Aan,S (1910)-Varshini,V (2056) Mumbai 2017}) 13. e5 {[%emt 0:00:31]} Nd7 {[%emt 0:00:01]} 14. Rxf4 {[%emt 0:00:55]} Qc7 {[%emt 0:00:08]} 15. Re1 {[%emt 0:00:46]} Rae8 {[%emt 0:01:08]} 16. Re4 {[%emt 0:02:26]} Qc6 {[%emt 0:03:22]} 17. Nd1 {[%emt 0:01:47]} Bg5 {[%emt 0:03:34]} 18. Nf2 {[%emt 0:02:30]} f5 {[%emt 0:01:01]} 19. exf6 $1 {[%emt 0:00:04]} Nxf6 {[%emt 0:00:00]} (19... Bxf6 $14 {is more appropriate.} 20. Bc3 Bxc3 21. dxc3 e5) 20. Bxf6 {[%emt 0:02:29]} (20. Rxe6 $16 Qxe6 21. Qxe6+ Rxe6 22. Rxe6) 20... Bxf6 $14 {[%emt 0:00:14]} 21. Rxe6 {[%emt 0:01:00]} Rxe6 {[%emt 0:00:11]} 22. Qxe6+ {[%emt 0:00:00]} Qxe6 {[%emt 0:00:01]} 23. Rxe6 {[%emt 0:00:00][%mdl 4096] Endgame KRB-KRN} Bd4 {[%emt 0:00:04]} 24. Re2 {[%emt 0:00:01]} b5 {[%emt 0:00:03]} 25. d3 {[%emt 0:00:09]} Rd8 {[%emt 0:01:13]} 26. cxb5 {[%emt 0:01:27]} axb5 {[%emt 0:00:03]} 27. Rc2 {[%emt 0:00:03]} b4 {[%emt 0:02:17]} 28. Kf1 {[%emt 0:00:03]} Bxf2 {[%emt 0:00:02]} 29. Kxf2 {[%emt 0:00:06]} Rxd3 {[%emt 0:00:00]} 30. Rxc5 $11 {[%emt 0:00:05] KR-KR} Rd2+ {[%emt 0:00:01]} 31. Kf3 {[%emt 0:00:03]} Rxa2 {[%emt 0:00:01]} 32. Rb5 {[%emt 0:00:04]} Rb2 {[%emt 0:00:12]} 33. Rxb4 {[%emt 0:00:02]} h5 {[%emt 0:00:05]} 34. h4 {[%emt 0:00:23]} Kh7 {[%emt 0:00:08]} 35. g3 {[%emt 0:00:18]} Kh6 {[%emt 0:00:05]} 36. Rb8 {[%emt 0:00:12]} g6 {[%emt 0:00:07]} 37. b4 {[%emt 0:00:27]} (37. g4 $14 {feels stronger.}) 37... Rb1 $2 {[%emt 0:00:11] [#]} (37... Rc2 $11) 38. b5 $2 {[%emt 0:00:09]} (38. g4 $1 $18 {[%cal Rg4g5]}) 38... Rb4 {[%emt 0:01:15]} 39. b6 {[%emt 0:01:29] Threatens to win with Ke3.} Kg7 {[%emt 0:00:17]} 40. Ke3 {[%emt 0:00:11]} Rg4 $2 {[%emt 0:00:28][%mdl 8192]} (40... Kf6 $11) 41. Kf2 $2 {[%emt 0:00:55]} (41. Rc8 $18 {Threatening mate with b7.} Rxg3+ 42. Kd4) 41... Rb4 {[%emt 0:00:19]} 42. Kf3 {[%emt 0:00:01]} Kf6 {[%emt 0:00:32]} 43. Ke3 $2 {[%emt 0:00:15]} ({White must play} 43. b7 $18 {White threatens Rf8+ and mate.} Kg7 44. Kf2) 43... Kf5 $1 {[%emt 0:00:59] The position is equal.} 44. b7 {[%emt 0:01:27] [#] Intending Rf8+ and mate.} Kg4 {[%emt 0:00:02]} 45. Rg8 {[%emt 0:00:05]} Rb3+ {[%emt 0:00:22]} 46. Ke4 {[%emt 0:00:14]} Rb4+ {[%emt 0:00:06]} 47. Ke5 {[%emt 0:00:06]} Rb5+ {[%emt 0:00:09]} 48. Kf6 {[%emt 0:00:46]} Rb6+ {[%emt 0:00:01]} 49. Ke5 {[%emt 0:00:01]} Rb5+ {[%emt 0:00:01]} 50. Kf6 {[%emt 0:00:24]} Rb6+ {[%emt 0:00:01]} 51. Kf7 {[%emt 0:00:02]} Rxb7+ {[%emt 0:00:03]} 52. Kxg6 {[%emt 0:00:01] And now Kh6+ would win.} Kxg3 {[%emt 0:00:32]} 53. Kxh5+ {[%emt 0:00:00]} Kh3 {[%emt 0:00:24]} 54. Rg6 {[%emt 0:00:37]} Rh7+ {[%emt 0:00:11]} 55. Kg5 {[%emt 0:00:02] aiming for h5.} Rxh4 {[%emt 0:00:02]} 56. Rh6 {[%emt 0:00:01]} Rxh6 {[%emt 0:00:01]} 57. Kxh6 {[%emt 0:00:00] Weighted Error Value: White=0.29 (precise) /Black=0.30} 1/2-1/2